fUSD/lending_fUSD_20240214
["ID","MTS","AMOUNT","RATE_DAILY","PERIOD"]
[314028375,1707925877584,-956.41,0.00039178,7]
[314028376,1707925877594,-500.0,0.00039178,7]
[314028377,1707925877604,-577.84,0.00039178,7]
[314028378,1707925877613,-500.0,0.00039178,7]
[314028379,1707925877625,-500.0,0.00039178,7]
[314028380,1707925877636,-1490.17,0.00039178,7]
[314028381,1707925877646,-500.0,0.00039178,7]
[314028382,1707925877656,-500.0,0.00039178,7]
[314028383,1707925877669,-500.0,0.00039178,7]
[314028384,1707925877680,-500.0,0.00039178,7]
[314028385,1707925877691,-500.0,0.00039178,7]
[314028386,1707925877703,-500.0,0.00039178,7]
[314028387,1707925877713,-500.0,0.00039178,7]
[314028388,1707925877722,-500.0,0.00039178,7]
[314028389,1707925877733,-500.0,0.00039178,7]
[314028390,1707925877742,-671.34,0.00039178,7]
[314028391,1707925877755,-630.46,0.00039178,7]
[314028392,1707925877765,-500.0,0.00039178,7]
[314028393,1707925877775,-500.0,0.00039178,7]
[314028394,1707925877785,-500.0,0.00039178,7]
[314028395,1707925877795,-911.38,0.00039178,7]
[314028396,1707925877804,-902.47,0.00039178,7]
[314028397,1707925877815,-1342.56,0.00039178,7]
[314028398,1707925877825,-500.0,0.00039178,7]
[314028399,1707925877835,-500.0,0.00039178,7]
[314028400,1707925877845,-500.0,0.00039178,7]
[314028401,1707925877855,-500.0,0.00039178,7]
[314028402,1707925877865,-500.0,0.00039178,7]
[314028403,1707925877874,-500.0,0.00039178,7]
[314028404,1707925877884,-600.4,0.00039178,7]
[314028405,1707925877894,-460.4,0.00039178,7]
[314028406,1707925877903,-947.59,0.00039178,7]
[314028407,1707925877913,-500.0,0.00039178,7]
[314028408,1707925877923,-500.0,0.00039178,7]
[314028409,1707925877933,-790.55,0.00039178,7]
[314028410,1707925877945,-579.3,0.00039178,7]
[314028411,1707925877956,-500.0,0.00039178,7]
[314028412,1707925877966,-500.0,0.00039178,7]
[314028413,1707925877976,-651.21,0.00039178,7]
[314028414,1707925877986,-2482.69,0.00039178,7]
[314028415,1707925877996,-545.1,0.00039178,7]
[314028416,1707925878006,-500.0,0.00039178,7]
[314028417,1707925878015,-500.0,0.00039178,7]
[314028418,1707925878026,-500.0,0.00039178,7]
[314028419,1707925878036,-500.0,0.00039178,7]
[314028420,1707925878045,-1000.0,0.000392,2]
[314028421,1707925878055,-150.0,0.000392,38]
[314028422,1707925878065,-1000.0,0.0003926,2]
[314028423,1707925878075,-807.0733703,0.00039308,2]
[314028424,1707925878085,-1319.81,0.000394,7]
[314028425,1707925878095,-1364.72480424,0.00039435,2]
[314028426,1707925878105,-984.67,0.00039452,7]
[314028427,1707925878114,-315.38,0.00039452,7]
[314028428,1707925878124,-507.97,0.00039452,7]
[314028429,1707925878134,-500.0,0.00039452,2]
[314028430,1707925878145,-500.0,0.00039452,7]
[314028431,1707925878155,-500.0,0.00039452,7]
[314028432,1707925878166,-500.0,0.00039452,7]
[314028433,1707925878176,-500.0,0.00039452,7]
[314028434,1707925878188,-500.0,0.00039452,7]
[314028435,1707925878199,-500.0,0.00039452,2]
[314028436,1707925878208,-668.96,0.00039452,7]
[314028437,1707925878219,-543.73,0.00039452,7]
[314028438,1707925878229,-500.0,0.00039452,7]
[314028439,1707925878239,-500.0,0.00039452,7]
[314028440,1707925878250,-500.0,0.00039452,7]
[314028441,1707925878260,-500.0,0.00039452,7]
[314028442,1707925878270,-619.79,0.00039452,7]
[314028443,1707925878280,-500.0,0.00039452,7]
[314028444,1707925878289,-976.02,0.00039452,7]
[314028445,1707925878300,-500.0,0.00039452,7]
[314028446,1707925878310,-500.0,0.00039452,7]
[314028447,1707925878320,-500.0,0.00039452,7]
[314028448,1707925878330,-500.0,0.00039452,7]
[314028449,1707925878340,-500.0,0.00039452,7]
[314028450,1707925878351,-500.0,0.00039452,7]
[314028451,1707925878361,-500.0,0.00039452,7]
[314028452,1707925878372,-500.0,0.00039452,7]
[314028453,1707925878383,-500.0,0.00039452,7]
[314028454,1707925878394,-1438.79,0.00039452,7]
[314028455,1707925878403,-500.0,0.00039452,7]
[314028456,1707925878414,-500.0,0.00039452,7]
[314028457,1707925878425,-264.68049363,0.00039452,7]
[314028458,1707925878434,-500.0,0.00039452,7]
[314028459,1707925878447,-546.87,0.00039452,7]
[314028460,1707925878457,-500.0,0.00039452,7]
[314028461,1707925878467,-1416.46,0.00039452,7]
[314028462,1707925878477,-500.0,0.00039452,7]
[314028463,1707925878487,-500.0,0.00039452,7]
[314028464,1707925878497,-956.41,0.00039452,7]
[314028465,1707925878507,-500.0,0.00039452,7]
[314028466,1707925878517,-577.84,0.00039452,7]
[314028467,1707925878527,-500.0,0.00039452,7]
[314028468,1707925878537,-500.0,0.00039452,7]
[314028469,1707925878547,-1490.17,0.00039452,7]
[314028470,1707925878557,-500.0,0.00039452,7]
[314028471,1707925878567,-500.0,0.00039452,7]
[314028472,1707925878577,-255.06,0.00039452,7]
[314028473,1707925878587,-647.66,0.00039452,7]
[314028474,1707925878597,-500.0,0.00039452,7]
[314028475,1707925878608,-500.0,0.00039452,7]
[314028476,1707925878619,-500.0,0.00039452,7]
[314028477,1707925878630,-500.0,0.00039452,7]
[314028478,1707925878641,-500.0,0.00039452,7]
[314028479,1707925878651,-671.34,0.00039452,7]
[314028480,1707925878661,-630.46,0.00039452,7]
[314028481,1707925878674,-500.0,0.00039452,7]
[314028482,1707925878684,-424.26,0.00039452,7]
[314028483,1707925878697,-500.0,0.00039452,7]
[314028484,1707925878707,-911.38,0.00039452,7]
[314028485,1707925878718,-902.47,0.00039452,7]
[314028486,1707925878729,-1342.56,0.00039452,7]
[314028487,1707925878739,-509.53,0.00039452,7]
[314028488,1707925878749,-500.0,0.00039452,7]
[314028489,1707925878760,-500.0,0.00039452,7]
[314028490,1707925878771,-500.0,0.00039452,7]
[314028491,1707925878781,-500.0,0.00039452,7]
[314028492,1707925878792,-500.0,0.00039452,7]
[314028493,1707925878802,-600.4,0.00039452,7]
[314028494,1707925878812,-947.59,0.00039452,7]
[314028495,1707925878822,-500.0,0.00039452,7]
[314028496,1707925878832,-500.0,0.00039452,7]
[314028497,1707925878842,-790.55,0.00039452,7]
[314028498,1707925878853,-579.3,0.00039452,7]
[314028499,1707925878863,-500.0,0.00039452,7]
[314028500,1707925878874,-500.0,0.00039452,7]
[314028501,1707925878884,-651.21,0.00039452,7]
[314028502,1707925878893,-2482.69,0.00039452,7]
[314028503,1707925878904,-545.1,0.00039452,7]
[314028504,1707925878915,-500.0,0.00039452,7]
[314028505,1707925878925,-512.4,0.00039452,7]
[314028506,1707925878938,-500.0,0.00039452,7]
[314028507,1707925878948,-500.0,0.00039452,7]
[314028508,1707925878959,-2242.0,0.00039461,20]
[314028509,1707925878969,-462.0,0.00039461,20]
[314028510,1707925878979,-1600.0,0.000395,12]
[314028511,1707925878989,-5000.0,0.000395,4]
[314028512,1707925878999,-303.43,0.000395,7]
[314028513,1707925879010,-431.33353086,0.000395,2]
[314028514,1707925879021,-153.71,0.000395,3]
[314028515,1707925879032,-153.71,0.000395,3]
[314028516,1707925879042,-510.30003893,0.0003953,2]
[314028517,1707925879053,-1364.72480424,0.00039544,2]
[314028518,1707925879064,-1338.49,0.0003963,2]
[314028519,1707925879074,-802.95,0.000397,3]
[314028520,1707925879085,-802.95,0.000397,3]
[314028521,1707925879095,-802.95,0.000397,3]
[314028522,1707925879105,-802.95,0.000397,3]
[314028523,1707925879116,-802.95,0.000397,3]
[314028524,1707925879127,-802.95,0.000397,3]
[314028525,1707925879137,-802.95,0.000397,3]
[314028526,1707925879147,-802.95,0.000397,3]
[314028527,1707925879156,-802.95,0.000397,3]
[314028528,1707925879166,-802.95,0.000397,3]
[314028529,1707925879176,-802.95,0.000397,3]
[314028530,1707925879188,-802.95,0.000397,3]
[314028531,1707925879197,-802.95,0.000397,3]
[314028532,1707925879207,-802.95,0.000397,3]
[314028533,1707925879216,-802.95,0.000397,3]
[314028534,1707925879226,-802.95,0.000397,3]
[314028535,1707925879237,-802.95,0.000397,3]
[314028536,1707925879248,-802.95,0.000397,3]
[314028537,1707925879258,-802.95,0.000397,3]
[314028538,1707925879268,-802.95,0.000397,3]
[314028539,1707925879279,-1259.84345339,0.00039714,9]
[314028540,1707925879289,-984.67,0.00039726,7]
[314028541,1707925879298,-507.97,0.00039726,7]
[314028542,1707925879308,-500.0,0.00039726,2]
[314028543,1707925879319,-477.14,0.00039726,7]
[314028544,1707925879329,-371.96946385,0.00039726,7]
[314028545,1707925879339,-335.17832288,0.00039726,7]
[314028546,1707925879348,-500.0,0.00039726,7]
[314028547,1707925879358,-500.0,0.00039726,7]
[314028548,1707925879369,-500.0,0.00039726,2]
[314028549,1707925879380,-668.96,0.00039726,7]
[314028550,1707925879390,-237.96963641,0.00039726,7]
[314028551,1707925879400,-500.0,0.00039726,7]
[314028552,1707925879410,-627.26,0.00039726,7]
[314028553,1707925879420,-500.0,0.00039726,7]
[314028554,1707925879429,-619.79,0.00039726,7]
[314028555,1707925879441,-500.0,0.00039726,7]
[314028556,1707925879451,-976.02,0.00039726,7]
[314028557,1707925879461,-500.0,0.00039726,7]
[314028558,1707925879471,-500.0,0.00039726,7]
[314028559,1707925879481,-500.0,0.00039726,7]
[314028560,1707925879490,-500.0,0.00039726,7]
[314028561,1707925879500,-500.0,0.00039726,7]
[314028562,1707925879510,-500.0,0.00039726,7]
[314028563,1707925879520,-500.0,0.00039726,7]
[314028564,1707925879530,-500.0,0.00039726,7]
[314028565,1707925879539,-500.0,0.00039726,7]
[314028566,1707925879550,-1438.79,0.00039726,7]
[314028567,1707925879560,-500.0,0.00039726,7]
[314028568,1707925879570,-500.0,0.00039726,7]
[314028569,1707925879579,-500.0,0.00039726,7]
[314028570,1707925879589,-546.87,0.00039726,7]
[314028571,1707925879599,-500.0,0.00039726,7]
[314028572,1707925879610,-1416.46,0.00039726,7]
[314028573,1707925879621,-500.0,0.00039726,7]
[314028574,1707925879631,-500.0,0.00039726,7]
[314028575,1707925879642,-956.41,0.00039726,7]
[314028576,1707925879652,-500.0,0.00039726,7]
[314028577,1707925879662,-577.84,0.00039726,7]
[314028578,1707925879674,-500.0,0.00039726,7]
[314028579,1707925879684,-500.0,0.00039726,7]
[314028580,1707925879697,-1490.17,0.00039726,7]
[314028581,1707925879708,-500.0,0.00039726,7]
[314028582,1707925879718,-500.0,0.00039726,7]
[314028583,1707925879729,-500.0,0.00039726,7]
[314028584,1707925879738,-500.0,0.00039726,7]
[314028585,1707925879751,-338.88,0.00039726,7]
[314028586,1707925879761,-500.0,0.00039726,7]
[314028587,1707925879772,-500.0,0.00039726,7]
[314028588,1707925879783,-671.34,0.00039726,7]
[314028589,1707925879794,-630.46,0.00039726,7]
[314028590,1707925879805,-500.0,0.00039726,7]
[314028591,1707925879815,-157.9,0.00039726,7]
[314028592,1707925879825,-911.38,0.00039726,7]
[314028593,1707925879835,-902.47,0.00039726,7]
[314028594,1707925879846,-1342.56,0.00039726,7]
[314028595,1707925879857,-243.01,0.00039726,7]
[314028596,1707925879866,-500.0,0.00039726,7]
[314028597,1707925879877,-500.0,0.00039726,7]
[314028598,1707925879889,-500.0,0.00039726,7]
[314028599,1707925879900,-500.0,0.00039726,7]
[314028600,1707925879911,-600.4,0.00039726,7]
[314028601,1707925879922,-947.59,0.00039726,7]
[314028602,1707925879932,-500.0,0.00039726,7]
[314028603,1707925879944,-500.0,0.00039726,7]
[314028604,1707925879956,-790.55,0.00039726,7]
[314028605,1707925879966,-579.3,0.00039726,7]
[314028606,1707925879977,-500.0,0.00039726,7]
[314028607,1707925879988,-500.0,0.00039726,7]
[314028608,1707925879998,-651.21,0.00039726,7]
[314028609,1707925880009,-2482.69,0.00039726,7]
[314028610,1707925880020,-545.1,0.00039726,7]
[314028611,1707925880030,-500.0,0.00039726,7]
[314028612,1707925880042,-500.0,0.00039726,7]
[314028613,1707925880053,-500.0,0.00039726,7]
[314028614,1707925880063,-2242.0,0.00039848,20]
[314028615,1707925880074,-462.0,0.00039848,20]
[314028616,1707925880086,-1364.72480424,0.0003997,2]
[314028617,1707925880096,-290.78003924,0.00039999,4]
[314028618,1707925880107,-100000.0,0.0004,30]
[314028619,1707925880118,-584.99978557,0.0004,30]
[314028620,1707925880130,-128472.2548007,0.0004,30]
[314028621,1707925880407,-391.57502856,0.0004,30]
[314028622,1707925880783,-500.0,0.00036712,2]
[314028623,1707925880794,-500.0,0.00036712,2]
[314028624,1707925880805,-500.0,0.00036712,2]
[314028625,1707925880815,-597.35956745,0.00036712,2]
[314028626,1707925880826,-500.0,0.00036986,2]
[314028627,1707925880836,-125813.88531984,0.0004,30]
[314028628,1707925880849,-41344.44253283,0.0004,30]
[314028629,1707925880900,-1939.5740952,0.0004,30]
[314028630,1707925880914,-884.91794429,0.0004,30]
[314028631,1707925880927,-5410.06,0.0004,30]
[314028632,1707925880942,-2753.8,0.0004,30]
[314028633,1707925880955,-5195.83959732,0.0004,30]
[314028634,1707925880968,-25988.10943094,0.0004,30]
[314028635,1707925881292,-9821.49605142,0.0004,30]
[314028636,1707925881311,-251.19131867,0.0004,30]
[314028637,1707925881323,-600.0,0.0004,30]
[314028638,1707925882758,9200.0,0.00023,2]
[314028639,1707925882793,9200.0,0.00023,2]
[314028640,1707925882821,9200.0,0.00023,2]
[314028641,1707925882845,9200.0,0.00023,2]
[314028642,1707925882869,9200.0,0.00023,2]
[314028643,1707925882893,9200.0,0.00023,2]
[314028644,1707925883021,-5200.0,0.00023,2]
[314028645,1707925886722,-3504.81393025,0.00022999,2]
[314028646,1707925895181,581.17869747,0.0002,2]
[314028647,1707925907913,1679.0310366,0.00017249,2]
[314028648,1707925907937,29.14599837,0.00017249,2]
[314028649,1707925939930,5845.97386266,0.00017249,2]
[314028650,1707925957924,5845.97386266,0.00017249,2]
[314028651,1707925975919,5845.97386266,0.00017249,2]
[314028653,1707925989961,205.0,9.8e-05,2]
[314028654,1707925993541,3481.73352117,0.0001305,2]
[314028655,1707926002216,612.8095219,0.00017249,2]
[314028656,1707926002243,612.8095219,0.00017249,2]
[314028657,1707926002267,4620.35481886,0.00017249,2]
[314028658,1707926019957,5845.97386266,0.00017249,2]
[314028659,1707926035179,230.38299448,0.000229,6]
[314028660,1707926041931,5845.97386266,0.00017249,2]
[314028661,1707926047337,6887.68109483,0.0002,2]
[314028662,1707926068289,5847.95925913,0.00017249,2]
[314028663,1707926075248,175.01690337,0.00020698,2]
[314028664,1707926089944,5843.98846619,0.00017249,2]
[314028665,1707926094859,158.81891053,0.00020698,2]
[314028666,1707926104010,5218.59747313,0.0002,2]
[314028667,1707926107937,301.06599353,0.00017249,2]
[314028668,1707926111260,156.8303386,0.0002,2]
[314028669,1707926118008,942.20974359,0.0002,2]
[314028670,1707926180448,414.68939008,0.000229,6]
[314028671,1707926189848,-152.70398443,0.00038287,120]
[314028672,1707926189872,-1065.7277663,0.00038287,120]
[314028673,1707926189896,-320.53232277,0.00038287,120]
[314028674,1707926189920,-224.74005351,0.00038287,120]
[314028675,1707926189944,-260.50827133,0.00038287,119]
[314028676,1707926189967,-10235.34978818,0.00038287,120]
[314028677,1707926189989,-288.28808948,0.00038287,120]
[314028678,1707926190012,-5820.50608567,0.00038287,35]
[314028679,1707926190041,-773.98648847,0.00038287,120]
[314028680,1707926190067,-445.28508626,0.00038287,120]
[314028681,1707926190090,-37039.65723828,0.00038287,120]
[314028682,1707926190117,-290.00013229,0.00038287,120]
[314028683,1707926192976,200.0,0.00021918,2]
[314028684,1707926201311,-156.44,0.00033792,120]
[314028685,1707926201346,-1815.752,0.00036612,120]
[314028686,1707926201370,-162.92968762,0.0003668,30]
[314028687,1707926201441,-546.59368811,0.00037533,30]
[314028688,1707926201509,-100000.0,0.0004,30]
[314028689,1707926201533,-135378.30641567,0.0004,30]
[314028690,1707926201565,-1238.48474586,0.0004,90]
[314028691,1707926201590,-1289.0,0.0004,30]
[314028692,1707926201628,-100000.0,0.00041,31]
[314028693,1707926201656,-4025.0,0.000417,87]
[314028694,1707926201685,-559.12264199,0.000418,30]
[314028695,1707926201716,-100000.0,0.00042,32]
[314028696,1707926201744,-1049.85830376,0.00042,30]
[314028697,1707926201767,-150.0,0.00042076,60]
[314028698,1707926201794,-156.44,0.0004224,120]
[314028699,1707926201819,-1606.83153153,0.000425,60]
[314028700,1707926201844,-13298.98382993,0.000425,30]
[314028701,1707926201866,-3155.16102046,0.000426,120]
[314028702,1707926201891,-175.0,0.000429,55]
[314028703,1707926201916,-100000.0,0.00043,33]
[314028704,1707926201938,-811.78324589,0.00043,30]
[314028705,1707926201962,-2000.0,0.00043,120]
[314028706,1707926201984,-203.0,0.00043,90]
[314028707,1707926202010,-150.0,0.00043076,60]
[314028708,1707926202033,-500.0,0.000432,120]
[314028709,1707926202055,-8470.962877,0.00043798,30]
[314028710,1707926202079,-1010.39655088,0.00043835,30]
[314028711,1707926202103,-2204.0134797,0.00043835,30]
[314028712,1707926202172,4351.0,0.00043,30]
[314028713,1707926212632,-100000.0,0.00044,34]
[314028714,1707926212655,-1000.0,0.00044,120]
[314028715,1707926212678,-1052.67501577,0.00044,120]
[314028716,1707926212700,-2000.0,0.00044,120]
[314028717,1707926212726,-2000.0,0.00044,120]
[314028718,1707926212748,-150.0,0.00044076,60]
[314028719,1707926212773,-62339.15470407,0.000444,120]
[314028720,1707926212797,-3761.35109265,0.000444,120]
[314028721,1707926212820,-300.0,0.000445,44]
[314028722,1707926212843,-2299.9999,0.000445,120]
[314028723,1707926212865,-29888.8,0.000446,60]
[314028724,1707926212891,-4428.6,0.00044931,105]
[314028725,1707926212919,-100000.0,0.00045,35]
[314028726,1707926212943,-790.88945224,0.00045,45]
[314028727,1707926212967,-300.0,0.00045,45]
[314028728,1707926212989,-1000.0,0.00045,45]
[314028729,1707926213012,-1000.0,0.00045,45]
[314028730,1707926213034,-1000.0,0.00045,45]
[314028731,1707926213055,-1000.0,0.00045,45]
[314028732,1707926213079,-1000.0,0.00045,45]
[314028733,1707926213101,-1000.0,0.00045,45]
[314028734,1707926213123,-25000.0,0.00045,45]
[314028735,1707926213145,-2500.0,0.00045,120]
[314028736,1707926213167,-1000.0,0.00045,120]
[314028737,1707926213190,-254152.0,0.00045,120]
[314028738,1707926213212,-120040.56136593,0.00045,37]
[314028739,1707926213240,-483406.77022548,0.00045,35]
[314028740,1707926213266,-1587.2904325,0.00045,120]
[314028741,1707926213290,-900.0,0.00045,46]
[314028742,1707926213314,-2000.0,0.00045,120]
[314028743,1707926213341,-150.0,0.00045076,60]
[314028744,1707926213365,-3566.0,0.00045345,120]
[314028745,1707926213388,-500.0,0.0004555,90]
[314028746,1707926213411,-121746.315,0.0004575,120]
[314028747,1707926213442,-121746.315,0.0004575,120]
[314028748,1707926213465,-400.624,0.0004575,120]
[314028749,1707926213491,-121746.315,0.0004575,120]
[314028750,1707926213514,-121746.315,0.0004575,120]
[314028751,1707926213538,-400.625,0.0004575,120]
[314028752,1707926213560,-400.624,0.0004575,120]
[314028753,1707926213582,-121746.316,0.0004575,120]
[314028754,1707926213614,-400.624,0.0004575,120]
[314028755,1707926213649,-400.624,0.0004575,120]
[314028756,1707926213673,-200921.00775287,0.0004588,100]
[314028757,1707926213699,-100000.0,0.00046,36]
[314028758,1707926213727,-300.0,0.00046,46]
[314028759,1707926213751,-10000.0,0.00046,120]
[314028760,1707926213774,-10000.0,0.00046,120]
[314028761,1707926213798,-10000.0,0.00046,120]
[314028762,1707926213820,-6848.47940713,0.00046,120]
[314028763,1707926213842,-2000.0,0.00046,120]
[314028764,1707926213865,-158.74063857,0.00046,120]
[314028765,1707926213889,-867.51399553,0.0004606,120]
[314028766,1707926213912,-150.0,0.00046076,60]
[314028767,1707926213934,-158.1397938,0.000463,120]
[314028768,1707926215255,602.34205215,0.000465,120]
[314028769,1707926215412,811.78324589,0.00043,30]
[314028770,1707926217273,150.0,0.00043,30]
[314028771,1707926224620,484245.45253544,0.0004,30]
[314028772,1707926228549,273.432,0.0004,30]
[314028773,1707926236007,334.26594089,0.0004588,100]
[314028774,1707926258350,1604.54,0.00020659,2]
[314028775,1707926259489,177.3,0.00021756,2]
[314028776,1707926268316,546.59368811,0.00022999,10]
[314028777,1707926275994,500.0,0.00022,2]
[314028778,1707926325862,416.73646638,0.000229,6]
[314028779,1707926387615,912.61,0.00022128,2]
[314028780,1707926404606,569.67,0.00021758,2]
[314028781,1707926407465,2000.0,0.00021758,2]
[314028782,1707926421551,231.51,0.00021795,2]
[314028783,1707926422800,536.26,0.00021795,2]
[314028784,1707926427616,250.0,0.00021918,2]
[314028785,1707926430952,23900.0,0.00021832,2]
[314028786,1707926434405,155.0,0.00021832,2]
[314028787,1707926438883,250.0,0.00021832,2]
[314028788,1707926461690,500.0,0.00021758,2]
[314028789,1707926471456,333.38917312,0.000229,6]
[314028790,1707926478914,200.0,0.00021758,2]
[314028792,1707926484496,11138.07,0.00021771,2]
[314028793,1707926485538,500.0,0.00021771,2]
[314028794,1707926490229,646.76,0.00021771,2]
[314028795,1707926538077,171.52,0.00021771,2]
[314028796,1707926581497,663.95,0.00021945,2]
[314028797,1707926614884,7812.22,0.00021771,2]
[314028798,1707926630105,1321.84,0.00021742,2]
[314028799,1707926653873,2212.06,0.00021776,2]
[314028800,1707926657086,244.0297527,0.00022128,2]
[314028801,1707926657194,187.62,0.00021939,2]
[314028802,1707926657728,187.62,0.00022,2]
[314028803,1707926657772,187.62,0.0002206,2]
[314028804,1707926657882,187.62,0.0002212,2]
[314028805,1707926669298,155.0,0.00021962,2]
[314028806,1707926689802,171.83,0.00021639,2]
[314028807,1707926700283,1852.42,0.00021622,2]
[314028808,1707926722960,750.0,0.00021613,2]
[314028809,1707926769686,200.0,0.00021629,2]
[314028810,1707926778264,150.0,0.00021634,2]
[314028811,1707926806223,11142.42,0.00021639,2]
[314028812,1707926812941,500.0,0.00021634,2]
[314028813,1707926817501,1524.31,0.00019716,2]
[314028814,1707926817709,1524.31,0.0002198,2]
[314028815,1707926861687,1051.50955881,0.00022154,2]
[314028816,1707926871059,155.0,0.00022154,2]
[314028817,1707926871748,281.72,0.00021657,2]
[314028818,1707926873381,250.0,0.00022,2]
[314028819,1707926876313,177.3,0.000213,2]
[314028820,1707926877629,177.3,0.00021848,2]
[314028821,1707926888560,1000.0,0.00021658,2]
[314028822,1707926891338,528.17865243,0.00022154,2]
[314028823,1707926892238,248.13544378,0.00022154,2]
[314028824,1707926902515,200.0,0.00021666,2]
[314028825,1707926904290,5475.35088695,0.00022154,2]
[314028826,1707926904455,448.69867796,0.00020468,2]
[314028827,1707926911156,625.14615193,0.00022078,2]
[314028828,1707926912353,250.0,0.00021918,2]
[314028829,1707926915118,250.0,0.00021673,2]
[314028830,1707926924443,448.69867796,0.00020468,2]
[314028831,1707926927161,339.59018394,0.00022078,2]
[314028832,1707926936171,2515.26528364,0.0002,2]
[314028833,1707926937319,200.0,0.0002167,2]
[314028834,1707926941829,150.0,0.00022154,2]
[314028835,1707926941986,300.0,0.00022154,2]
[314028841,1707926946437,448.69867796,0.00020468,2]
[314028842,1707926946519,282.19441718,0.00022,2]
[314028843,1707926950115,-25530.959,0.00022155,2]
[314028844,1707926950236,150.0,0.00022,2]
[314028845,1707926952173,-8008.50515008,0.00022155,2]
[314028846,1707926952193,-1912.95752079,0.00022161,2]
[314028847,1707926952213,-270.64908,0.00022162,2]
[314028848,1707926952233,-261.72893916,0.00022162,2]
[314028849,1707926952253,-632.53888103,0.00022162,2]
[314028850,1707926952273,-244.02975258,0.00022169,2]
[314028851,1707926952294,-187.62,0.0002218,2]
[314028852,1707926952314,-244.02975258,0.00022209,2]
[314028853,1707926952334,-187.62,0.0002224,2]
[314028854,1707926952357,-499.99,0.0002224,2]
[314028855,1707926952375,-912.61,0.00022244,2]
[314028856,1707926952395,-156.45,0.00022246,2]
[314028857,1707926952415,-244.02975258,0.0002225,2]
[314028858,1707926952436,-244.02975258,0.00022291,2]
[314028859,1707926952456,-187.62,0.000223,2]
[314028860,1707926952476,-244.02975258,0.00022331,2]
[314028861,1707926952496,-187.62,0.00022361,2]
[314028862,1707926952518,-912.61,0.00022361,2]
[314028863,1707926952538,-244.02975258,0.00022372,2]
[314028864,1707926952558,-177.3,0.00022396,2]
[314028865,1707926952578,-244.02975258,0.00022412,2]
[314028866,1707926952598,-187.62,0.00022421,2]
[314028867,1707926952623,-244.02975258,0.00022453,2]
[314028868,1707926952642,-912.61,0.00022477,2]
[314028869,1707926952662,-187.62,0.00022481,2]
[314028870,1707926952681,-244.02975258,0.00022494,2]
[314028871,1707926952701,-244.02975258,0.00022534,2]
[314028872,1707926952722,-187.62,0.00022541,2]
[314028873,1707926952743,-300.0,0.00022548,2]
[314028874,1707926952763,-244.02975258,0.00022575,2]
[314028875,1707926952785,-844.50324609,0.00022593,2]
[314028876,1707926952805,-912.61,0.00022594,2]
[314028877,1707926952825,-187.62,0.00022601,2]
[314028878,1707926952844,-3749.94604129,0.00022602,2]
[314028879,1707926952867,-244.02975258,0.00022616,2]
[314028880,1707926952887,-244.02975258,0.00022656,2]
[314028881,1707926952907,-187.62,0.00022661,2]